[Event "FRA-ch Teams Top 16-B 2022"]
[Site "Chartres"]
[Date "2022.06.15"]
[Round "7.29"]
[White "Tregubov, Pavel V."]
[Black "Nezar, Mustapha"]
[Result "1-0"]
[ECO "B22"]
[WhiteElo "2541"]
[BlackElo "2357"]
[Annotator "TA"]
[PlyCount "127"]
[EventDate "2022.06.09"]
[EventType "team-tourn"]
[EventCountry "FRA"]
[SourceTitle "playchess.com"]
[Source "ChessBase"]
[SourceQuality "1"]
[TimeControl "40/5400+30:1800+30"]

{[%evp 19,127,10,16,0,0,0,0,5,-4,0,0,0,0,0,0,0,0,0,0,0,0,0,2,0,0,0,0,0,0,0,0,0,14,0,32,29,41,2,41,21,28,24,23,18,56,45,39,41,58,43,43,17,50,48,72,72,61,53,61,53,60,62,77,72,89,54,79,65,57,58,92,92,92,92,92,92,93,66,104,104,82,39,52,11,74,33,52,0,51,0,77,14,66,0,108,103,270,264,345,337,418,244,29985,29986,29991,29992,29996,29997,29997,454]} 1. e4 {[%emt 0:02:10]} c5 {[%emt 0:01:09]} 2. Nf3 {[%emt 0:00:09]} e6 {[%emt 0:00:20]} 3. c3 {[%emt 0:00:09]} Nf6 {[%emt 0:03:00]} 4. e5 {[%emt 0:00:07]} Nd5 {[%emt 0:00:04]} 5. d4 {[%emt 0:00:09]} cxd4 {[%emt 0:03:18]} 6. cxd4 {[%emt 0:00:07]} d6 {[%emt 0:01:24]} 7. Bc4 {[%emt 0:00:07]} Be7 {[%emt 0:01:53]} 8. O-O {[%emt 0:05:31]} O-O {[%emt 0:06:01]} 9. Qe2 {[%emt 0:01:04]} Nc6 {[%emt 0:05:30]} 10. Rd1 {[%emt 0:00:10]} Na5 {[%emt 0:08:54]} 11. Bd3 {[%emt 0:00:35] B22: Sicilian: 2 c3.} Nb4 {[%emt 0:00:55]} 12. Nc3 $1 {[%emt 0:00:08][%mdl 4] is more profitable than 12.exd6 at the moment.} Nxd3 {[%emt 0:00:35]} 13. Rxd3 {[%emt 0:00:08] The position is equal.} b6 {[%emt 0:06:02] Strongly threatening ...Ba6.} 14. b4 {[%emt 0:00:09]} Nc6 {[%emt 0:02:27]} 15. a3 {[%emt 0:00:19]} d5 {[%emt 0:01:32] [#]} 16. Ne1 $146 {[%emt 0:04:33]} ({Predecessor:} 16. Bf4 b5 17. Ne1 a5 18. Rb1 f5 19. exf6 Bxf6 20. Nf3 axb4 21. axb4 Qb6 22. Qd2 {½-½ (38) Willmann,B (2371)-Slawinski,T (2312) LSS email 2020}) 16... f6 {[%emt 0:07:46]} 17. exf6 {[%emt 0:00:57]} Bxf6 {[%emt 0:00:07]} 18. Nf3 {[%emt 0:00:18]} Bd7 {[%emt 0:02:15]} 19. Bf4 {[%emt 0:07:28][%cal Bc1f4,Bf4d6,Bd6e5][%mdl 32]} Rc8 {[%emt 0:03:47][%cal Oc6d4]} 20. Bd6 {[%emt 0:02:44]} Re8 {[%emt 0:01:20][%cal Oc6d4]} 21. Qd2 {[%emt 0:06:11]} Ne7 {[%emt 0:05:33]} 22. Re1 {[%emt 0:03:18]} Nf5 {[%emt 0:02:32]} 23. Be5 {[%emt 0:00:33]} Be7 {[%emt 0:01:11]} 24. h3 {[%emt 0:12:25]} Nd6 {[%emt 0:10:48]} 25. Qf4 {[%emt 0:03:13]} Nc4 {[%emt 0:04:04]} 26. Qg4 {[%emt 0:00:44][%csl Ge5][%cal Rg4g7] [#]} Nxe5 {[%emt 0:01:25]} 27. Nxe5 {[%emt 0:00:10]} Bf6 {[%emt 0:00:21]} 28. Rf3 {[%emt 0:03:59][%cal Of3f6]} Bxe5 {[%emt 0:03:11]} 29. Rxe5 {[%emt 0:00:22]} Rf8 $1 {[%emt 0:01:25]} 30. Rxf8+ {[%emt 0:07:56]} Qxf8 {[%emt 0:00:38]} 31. Re3 {[%emt 0:00:40]} Qf6 {[%emt 0:05:02][%cal Oh7h5]} 32. Ne2 {[%emt 0:08:21][%cal Bc3e2,Be2f4,Bf4d3,Bd3e5][%mdl 32]} Rf8 {[%emt 0:02:51]} 33. Rf3 {[%emt 0:00:45] Active counter play!} Qe7 {[%emt 0:00:16]} 34. Nf4 {[%emt 0:11:56]} Rf5 {[%emt 0:02:23]} 35. Nd3 {[%emt 0:03:31]} Rxf3 {[%emt 0:03:03]} 36. Qxf3 $11 {[%emt 0:00:07][%mdl 4096] Endgame KQB-KQN} Bb5 {[%emt 0:01:08]} 37. Ne5 {[%emt 0:00:32]} Qc7 {[%emt 0:01:32]} 38. Qg4 {[%emt 0:01:56]} Qe7 {[%emt 0:00:27]} 39. Qf4 {[%emt 0:02:51]} Qc7 {[%emt 0:01:05]} 40. h4 {[%emt 0:00:15][%cal Bh3h4,Bh4h5][%mdl 32]} Be8 {[%emt 0:00:47]} 41. Qe3 {[%emt 0:35:24] Against Qc3} Bf7 {[%emt 0:31:41]} 42. Qd2 {[%emt 0:00:00]} Be8 {[%emt 0:00:00]} 43. g4 {[%emt 0:00:00]} Ba4 {[%emt 0:00:00]} 44. Kg2 {[%emt 0:00:00]} Bb5 {[%emt 0:00:00]} 45. h5 {[%emt 0:00:00]} h6 {[%emt 0:00:00]} 46. Qe3 {[%emt 0:00:00]} Be8 {[%emt 0:00:00]} 47. Nd3 {[%emt 0:00:00]} Bf7 {[%emt 0:00:00]} 48. Nf4 {[%emt 0:00:00]} a5 {[%emt 0:00:00]} 49. bxa5 {[%emt 0:00:00]} (49. Nxe6 $6 Qd7 50. Nf4 Qxg4+ 51. Qg3 Qd1 $11) 49... bxa5 {[%emt 0:00:00]} 50. Kh3 {[%emt 0:00:32]} ({Much weaker is} 50. Nxe6 Qd7 51. Nf4 Qxg4+ 52. Kh2 (52. Qg3 Bxh5 53. Qxg4 Bxg4 $15) 52... Bxh5 $15) 50... Qb6 {[%emt 0:00:00]} 51. Kg3 {[%emt 0:03:10]} Qc7 {[%emt 0:00:00]} (51... Qb1 $11) 52. Kf3 {[%emt 0:00:11]} Qc2 {[%emt 0:00:53]} 53. Kg3 {[%emt 0:02:42]} (53. Nd3 {looks sharper.} Qd1+ 54. Kf4 Qh1 55. Ne5) 53... Qc7 {[%emt 0:00:43]} 54. Kh3 {[%emt 0:00:37]} Qb6 {[%emt 0:00:20]} 55. Nd3 {[%emt 0:01:57]} ({White should try} 55. Qc3 $16) 55... Qb1 {[%emt 0:03:17]} (55... Qb3 $1 $11) 56. Kg2 {[%emt 0:00:11]} ({Better is} 56. Ne5 $1 $14) 56... Qd1 {[%emt 0:00:31]} (56... Qb3 $11 {keeps the balance.}) 57. Ne5 $36 {[%emt 0:00:38][%mdl 2048] Hoping for Qc3. White is in control.} Be8 $2 {[%emt 0:01:21] [#] Black cannot hold the game after this.} (57... Qc2 $16 {was worth a try.}) 58. Nf3 $1 $18 {[%emt 0:02:27]} Bf7 {[%emt 0:01:16]} 59. Qc3 {[%emt 0:00:33] Against Qc2} a4 {[%emt 0:00:35]} 60. Ne5 {[%emt 0:01:22]} (60. Qc7 $142) 60... Be8 $2 {[%emt 0:00:56]} (60... Kh7 $18 61. Nxf7 Qxg4+ 62. Qg3 Qxh5) 61. Qc8 {[%emt 0:00:46][%csl LRe6,LRe8] White mates.} Kf8 {[%emt 0:00:10]} 62. Qd8 {[%emt 0:01:47]} Qxd4 {[%emt 0:01:11]} 63. Ng6+ {[%emt 0:00:08]} Kf7 {[%emt 0:00:19]} 64. Qe7+ {[%emt 0:00:06][%mdl 64] Deflection.  Weighted Error Value: White=0.15 (very precise) /Black=0.28 (precise)} 1-0

[Event "FRA-ch Teams Top 16-B 2022"]
[Site "Chartres"]
[Date "2022.06.15"]
[Round "7.30"]
[White "Thomas, Anysia"]
[Black "Delorme, Axel"]
[Result "0-1"]
[ECO "D11"]
[WhiteElo "2137"]
[BlackElo "2461"]
[Annotator "TA"]
[PlyCount "94"]
[EventDate "2022.06.09"]
[EventType "team-tourn"]
[EventCountry "FRA"]
[SourceTitle "playchess.com"]
[Source "ChessBase"]
[SourceQuality "1"]
[TimeControl "40/5400+30:1800+30"]

{[%evp 11,94,10,17,8,10,13,30,22,30,10,9,-24,-22,-30,-25,-19,-15,-26,0,0,8,-10,0,-99,-79,-85,-89,-77,-58,-119,-119,-119,-115,-172,-169,-234,-228,-224,-220,-282,-260,-295,-239,-268,-187,-208,-183,-417,-433,-416,-433,-397,-418,-425,-410,-504,-473,-504,-497,-491,-474,-564,-541,-711,-215,-704,-697,-961,-966,-868,-856,-1902,-1952,-1928,-1720,-6099,-5073,-6285,-6027,-29984,-29980,-29979,-29976,-29969,-29968]} 1. d4 {[%emt 0:02:10]} d5 {[%emt 0:00:09]} 2. c4 {[%emt 0:00:16]} c6 {[%emt 0:00:05]} 3. Nf3 {[%emt 0:00:49]} Nf6 {[%emt 0:00:07]} 4. e3 {[%emt 0:00:14]} Bg4 {[%emt 0:00:46]} 5. Qb3 {[%emt 0:00:37]} Qb6 {[%emt 0:00:21]} 6. Nc3 {[%emt 0:00:15]} e6 {[%emt 0:00:13]} 7. Nh4 {[%emt 0:05:16] D11: Slav Defence: 3 Nf3 sidelines and 3...Nf6 4 e3 Bg4.} Bh5 {[%emt 0:00:58]} 8. h3 {[%emt 0:02:26]} g5 {[%emt 0:00:34]} 9. Nf3 {[%emt 0:00:40] White has an edge.} h6 {[%emt 0:00:06]} 10. Ne5 {[%emt 0:11:43]} Nfd7 {[%emt 0:01:23]} 11. Qxb6 {[%emt 0:03:47]} (11. cxd5 {is more complex.} Qxb3 12. axb3 exd5 13. h4) 11... axb6 {[%emt 0:02:05]} 12. Nxd7 {[%emt 0:02:05]} Nxd7 {[%emt 0:03:16]} 13. cxd5 {[%emt 0:01:40]} exd5 {[%emt 0:00:39]} 14. Bd3 {[%emt 0:00:37]} Rg8 {[%emt 0:09:46]} 15. Bd2 {[%emt 0:03:54]} b5 {[%emt 0:06:00][%cal Bb6b5,Bb5b4][%mdl 32] [#]} 16. f3 $146 {[%emt 0:09:49]} ({Predecessor:} 16. O-O Bg6 17. Bxg6 Rxg6 18. Ne2 Bd6 19. Nc1 Ke7 20. Nd3 f5 21. Bb4 Bxb4 22. Nxb4 {0-1 (52) Andersen,M (2410)-Sandipan,C (2641) Caleta 2011}) 16... Bg6 {[%emt 0:01:53]} 17. e4 {[%emt 0:05:33]} (17. Bxg6 $11 fxg6 18. e4) 17... b4 {[%emt 0:04:15]} 18. Ne2 {[%emt 0:00:41]} Nf6 {[%emt 0:02:55][%cal Rd5e4]} 19. Ng3 {[%emt 0:05:39]} Bd6 {[%emt 0:08:26]} 20. Kf2 {[%emt 0:08:26] Black converts the advantage convincingly.} (20. Nf5 $15 Bxf5 21. exf5) 20... Bxg3+ $17 {[%emt 0:04:33]} 21. Kxg3 {[%emt 0:00:05][%cal Oe4e5]} dxe4 {[%emt 0:00:21]} 22. fxe4 {[%emt 0:16:10] [#]} (22. Be2 $17) 22... O-O-O $1 $19 {[%emt 0:02:52]} ({And not} 22... Nxe4+ 23. Bxe4 Bxe4 24. Bxb4 $17) 23. d5 {[%emt 0:10:46]} (23. Rad1 {was necessary.}) 23... Bxe4 {[%emt 0:00:59]} 24. Be2 {[%emt 0:00:49]} Nxd5 {[%emt 0:01:12]} 25. Rac1 {[%emt 0:00:52]} f5 {[%emt 0:00:31][%cal Od5f4]} 26. Rhe1 {[%emt 0:02:44]} Rge8 {[%emt 0:07:54][%cal Od5f4]} 27. a4 {[%emt 0:01:57]} f4+ {[%emt 0:04:53]} 28. Kh2 {[%emt 0:00:20]} Kb8 {[%emt 0:04:45]} 29. Bh5 $2 {[%emt 0:02:23]} (29. Kg1) 29... Nf6 {[%emt 0:03:52][%csl LRd2,LRh5]} 30. Bxf4+ {[%emt 0:01:56]} gxf4 {[%emt 0:00:14]} 31. Bxe8 {[%emt 0:00:05]} Rxe8 {[%emt 0:01:59]} 32. Rc4 {[%emt 0:00:07]} b3 {[%emt 0:00:26]} 33. Rb4 {[%emt 0:00:52]} Rd8 {[%emt 0:02:42]} 34. Re2 {[%emt 0:01:11] Inhibits Rd2.} Rd3 {[%emt 0:01:19]} 35. Rf2 {[%emt 0:00:22]} Ka7 {[%emt 0:13:01]} 36. Rxf4 {[%emt 0:00:39] [#]} Rd2 $1 {[%emt 0:01:59][%csl LRb2,LRg2]} 37. Rxf6 {[%emt 0:00:34]} (37. Rfxe4 Nxe4) 37... Rxg2+ {[%emt 0:00:26][%mdl 4096] Endgame KRR-KRB} 38. Kh1 {[%emt 0:00:02]} Bd5 {[%emt 0:00:18] Hoping for ...Rg4+.} 39. Rf5 {[%emt 0:00:47][%cal Of5d5] aiming for Rxd5!} Rg4+ {[%emt 0:03:42]} 40. Rxd5 {[%emt 0:00:08]} Rxb4 {[%emt 0:00:09] KR-KR} 41. Rd3 {[%emt 0:06:08]} c5 {[%emt 0:00:40][%cal Bc6c5,Bc5c4,Bc4c3][%mdl 32]} 42. a5 {[%emt 0:00:20]} c4 {[%emt 0:01:13]} 43. Rd4 {[%emt 0:00:52]} Ka6 {[%emt 0:00:17] White must now prevent ...Ra4.} 44. Rd6+ {[%emt 0:01:25]} Kxa5 {[%emt 0:00:08][%cal Oc4c3] ( -> ...c3!)} 45. Rxh6 {[%emt 0:00:03]} Rb6 {[%emt 0:00:30] Black mates.} 46. Rh5+ {[%emt 0:01:08]} Rb5 {[%emt 0:00:17]} 47. Rh8 {[%emt 0:01:03]} c3 {[%emt 0:00:47] Weighted Error Value: White=0.82/Black=0.17 (very precise)} 0-1

[Event "FRA-ch Teams Top 16-B 2022"]
[Site "Chartres"]
[Date "2022.06.15"]
[Round "7.31"]
[White "Hamdouchi, Hicham"]
[Black "Adrian, Claude"]
[Result "1-0"]
[ECO "C02"]
[WhiteElo "2536"]
[BlackElo "2175"]
[Annotator "TA"]
[PlyCount "59"]
[EventDate "2022.06.09"]
[EventType "team-tourn"]
[EventCountry "FRA"]
[SourceTitle "playchess.com"]
[Source "ChessBase"]
[SourceQuality "1"]
[TimeControl "40/5400+30:1800+30"]

{[%evp 14,59,0,0,0,0,0,-31,42,42,47,41,48,45,136,138,132,123,188,188,187,197,207,201,245,235,233,235,179,161,603,333,300,321,598,601,571,567,512,454,410,343,811,547,516,495,2322,2180]} 1. e4 {[%emt 0:00:03]} e6 {[%emt 0:00:28]} 2. d4 {[%emt 0:00:48]} d5 {[%emt 0:00:05]} 3. e5 {[%emt 0:00:06]} c5 {[%emt 0:00:14]} 4. c3 {[%emt 0:00:09]} Qb6 {[%emt 0:00:12]} 5. Nf3 {[%emt 0:00:11]} Nc6 {[%emt 0:00:08]} 6. Be2 {[%emt 0:01:16]} cxd4 {[%emt 0:00:40]} 7. cxd4 {[%emt 0:00:08]} Nh6 {[%emt 0:00:04]} 8. Bxh6 $1 {[%emt 0:10:06][%mdl 4] aiming for Bc1. is recently more successful than 8.Nc3.} Qxb2 {[%emt 0:00:39] C02: French: Advance Variation.} 9. Nbd2 {[%emt 0:00:44] And now Be3 would win.} gxh6 {[%emt 0:00:37]} 10. O-O {[%emt 0:00:05]} Qb6 {[%emt 0:10:51]} ({Better is} 10... Nxd4 $15 11. Rb1 (11. Qa4+ Nc6 $17) 11... Nxe2+ 12. Qxe2 Qa3) 11. Rb1 {[%emt 0:15:29][%cal Ba1b1,Bb1b7,Bb7c7][%mdl 32]} Qd8 {[%emt 0:01:30]} 12. Qc2 {[%emt 0:05:53] [#]} Bg7 $146 {[%emt 0:01:35]} ({Predecessor:} 12... Be7 13. Bd3 Kf8 14. Bb5 Bd7 15. Bxc6 Bxc6 16. Ne1 Rc8 17. Qd3 a6 18. Qh3 Bb5 19. Rxb5 axb5 20. Qxh6+ {0-1 (59) Gomes,V-Quang,D Odessa 1990}) 13. Bd3 {[%emt 0:00:20]} Bd7 {[%emt 0:08:30]} ({Black should try} 13... Rb8 $14) 14. Rxb7 $16 {[%emt 0:01:29]} Na5 {[%emt 0:05:46]} 15. Rc7 {[%emt 0:08:11] Threatens to win with Qc5. White is much more active. The black rooks are badly placed.} O-O {[%emt 0:03:37]} (15... Rc8 $16 16. Rxc8 Qxc8) 16. Qc5 $36 {[%emt 0:03:10][%mdl 2048] Black is under strong pressure.} Nc4 {[%emt 0:02:44]} 17. Bxc4 {[%emt 0:05:21]} (17. Nxc4 dxc4 18. Bxc4 (18. Qxc4 Bb5 $11) 18... Rc8 19. Rxc8 Qxc8 $16) 17... dxc4 {[%emt 0:00:44]} 18. Rb1 {[%emt 0:00:39]} ({Worse is} 18. Qxc4 {[#]} Bb5 $1 19. Qxb5 Qxc7 $15) (18. Nxc4 Rc8 19. Rxc8 Qxc8 $16) 18... a6 {[%emt 0:05:44]} 19. Nxc4 {[%emt 0:01:38] Rbb7 is the strong threat.} Rc8 {[%emt 0:02:54]} 20. Rbb7 {[%emt 0:01:14]} Rxc7 {[%emt 0:00:48]} 21. Rxc7 {[%emt 0:00:51] Black must now prevent Nb6.} ({But not} 21. Qxc7 Qxc7 22. Rxc7 Rc8 23. Rxc8+ (23. Rxd7 Rxc4 24. Kf1 Rc1+ 25. Ke2 Rc2+ 26. Ke3 Rxa2 $14) 23... Bxc8 $16) 21... Bb5 $2 {[%emt 0:00:23]} (21... Qb8 22. Nb6 Rd8) 22. Nd6 {[%emt 0:01:54]} Be2 {[%emt 0:01:48]} 23. Nd2 {[%emt 0:08:32]} Qg5 $2 {[%emt 0:02:23]} (23... Bd3 {was worth a try.} 24. Nxf7 Qh4) 24. N2e4 {[%emt 0:04:45] Pair of Knights!} Qg6 {[%emt 0:00:36]} 25. Qc3 {[%emt 0:05:40] Inhibits Bf3.} h5 {[%emt 0:06:24]} 26. h3 {[%emt 0:02:05]} h4 {[%emt 0:01:38]} 27. Rc8 {[%emt 0:01:33] Dancing on a razor blade.} h5 $2 {[%emt 0:06:36]} (27... Rxc8 28. Qxc8+ Bf8 29. Nf6+ Kg7 30. Nxf7 Qxf7) 28. a4 {[%emt 0:03:52] White is clearly winning.} Rxc8 {[%emt 0:05:22]} 29. Qxc8+ {[%emt 0:00:27]} Kh7 {[%emt 0:00:43] [#]} (29... Bf8 $142 30. Nf6+ Kg7 31. Nxf7 Qxf7) 30. Nxf7 $1 {[%emt 0:00:18][%mdl 512] Black got outplayed after the opening.  Weighted Error Value: White=0.34/Black=0.65} 1-0

[Event "FRA-ch Teams Top 16-B 2022"]
[Site "Chartres"]
[Date "2022.06.15"]
[Round "7.32"]
[White "Pourquet, Matthieu"]
[Black "Benmesbah, Natacha"]
[Result "0-1"]
[ECO "A70"]
[WhiteElo "2178"]
[BlackElo "2251"]
[Annotator "TA"]
[PlyCount "124"]
[EventDate "2022.06.09"]
[EventType "team-tourn"]
[EventCountry "FRA"]
[SourceTitle "playchess.com"]
[Source "ChessBase"]
[SourceQuality "1"]
[TimeControl "40/5400+30:1800+30"]

{[%evp 23,124,39,80,87,82,83,116,59,75,0,104,112,131,123,105,106,115,75,95,64,65,52,58,64,68,74,49,39,127,40,71,36,49,0,0,0,0,0,4,28,21,12,191,168,191,158,264,0,0,-62,0,-80,-72,-228,-227,-218,-227,-221,-211,-195,-202,-220,-233,-306,-290,-189,-205,-245,-231,-452,-462,-531,-558,-572,-569,-635,-589,-574,-550,-865,-758,-917,-888,-773,-577,-1585,-1544,-5554,-5937,-29988,-29989,-29991,-29980,-29979,-29963,-29952,-29951,-29965,-29940,-29984,-29985,-29985,-29986]} 1. d4 {[%emt 0:00:29]} Nf6 {[%emt 0:00:17]} 2. c4 {[%emt 0:00:09]} g6 {[%emt 0:00:54]} 3. Nc3 {[%emt 0:02:05]} Bg7 {[%emt 0:00:46]} 4. e4 {[%emt 0:00:06]} d6 {[%emt 0:00:08]} 5. Nf3 {[%emt 0:01:54]} O-O {[%emt 0:01:59]} 6. h3 {[%emt 0:00:05]} c5 {[%emt 0:03:05]} 7. d5 {[%emt 0:00:30]} e6 {[%emt 0:00:30]} 8. Be3 {[%emt 0:02:44]} exd5 {[%emt 0:02:59]} 9. cxd5 {[%emt 0:01:25]} Nbd7 {[%emt 0:13:34]} 10. Bd3 {[%emt 0:04:08]} Re8 {[%emt 0:25:09]} 11. O-O {[%emt 0:01:03]} a6 {[%emt 0:01:32]} 12. a4 {[%emt 0:01:15]} Rb8 {[%emt 0:01:08][%cal Ob7b5]} 13. Nd2 {[%emt 0:10:08] A70: Modern Benoni: 6 e4 g6 7 Nf3.} Nh5 {[%emt 0:05:25]} 14. Be2 {[%emt 0:03:33] [#]} Qh4 $146 {[%emt 0:05:36]} ({Predecessor:} 14... Nhf6 15. a5 b5 16. axb6 Qxb6 17. Nc4 Qc7 18. Qc2 Ne5 19. Nxe5 Rxe5 20. Bxa6 Re8 21. Bxc8 Qxc8 {0-1 (49) Barseghyan,A (2358)-Borisova,E (2256) Cheliabinsk 2021}) 15. Nf3 {[%emt 0:30:44]} (15. Nc4 $16) 15... Qe7 $14 {[%emt 0:00:27]} 16. Nd2 {[%emt 0:00:04]} (16. Re1 $16) 16... Bxc3 {[%emt 0:07:00]} (16... Qh4 $1 $11) 17. bxc3 $16 {[%emt 0:00:19]} Nhf6 {[%emt 0:00:21]} 18. Bf3 {[%emt 0:04:13]} b5 {[%emt 0:00:46]} 19. axb5 {[%emt 0:00:20]} axb5 {[%emt 0:00:11]} 20. Bf4 {[%emt 0:01:48]} Ne5 {[%emt 0:00:27][%cal Bd7e5,Be5g6,Bg6f4][%mdl 32]} 21. Bg5 {[%emt 0:00:13]} Kg7 {[%emt 0:00:50]} 22. Be2 {[%emt 0:02:08]} h6 {[%emt 0:02:27]} 23. Bh4 {[%emt 0:00:04] This bishop pair is nice.} g5 {[%emt 0:01:32]} 24. Bg3 {[%emt 0:00:04]} Ng6 {[%emt 0:00:48]} 25. Re1 {[%emt 0:05:07]} Nd7 {[%emt 0:03:03]} (25... Bd7 $14) 26. Ra7 {[%emt 0:01:21]} (26. Ra5 $16) 26... Qf6 $1 $14 {[%emt 0:00:24]} 27. Qa1 $36 {[%emt 0:11:34][%mdl 2048] Black is under pressure.} Nf4 $1 {[%emt 0:04:15]} 28. Bf1 {[%emt 0:00:12]} (28. Qa5 $14) 28... Ne5 $11 {[%emt 0:00:43]} 29. Rb1 {[%emt 0:00:48]} Bd7 {[%emt 0:05:41]} 30. Qa5 {[%emt 0:00:09]} c4 {[%emt 0:00:39]} 31. Ra6 {[%emt 0:03:23]} Red8 {[%emt 0:01:44]} 32. f3 {[%emt 0:03:21]} g4 $2 {[%emt 0:07:54]} (32... Nh5 $11 33. Bh2 Nf4) 33. hxg4 {[%emt 0:01:17]} h5 {[%emt 0:00:21]} 34. Qc7 {[%emt 0:01:25]} Be8 {[%emt 0:01:41] [#]} (34... Ra8 $16 {is a better defense.} 35. Rba1 (35. Rxd6 Qg5 $16) 35... Rxa6 36. Rxa6 Bc8) 35. gxh5 $2 {[%emt 0:04:21]} (35. Rxd6 $1 $18 {[%mdl 512]} Rxd6 36. Qxb8) 35... Qg5 {[%emt 0:00:46]} 36. h6+ {[%emt 0:01:40]} (36. Rxd6 $2 Qxg3 37. Rxd8 Ned3 38. Qxf4 (38. Rxb8 $2 Nh3+ 39. Kh1 Ndf2#) 38... Qxf4 39. Rxb8 Qxb8 $19) (36. Bxf4 $11 Qxf4 37. Rd1 (37. Rxd6 $2 Rxd6 38. Qxb8 Rh6 $19) (37. Nxc4 Rbc8 $17)) 36... Qxh6 {[%emt 0:00:40]} (36... Kh7 $1 $15 37. Be1 (37. Rxd6 $2 Qxg3 38. Rxd8 Ned3 $19) 37... Ned3) 37. Qe7 {[%emt 0:04:51]} (37. Rxd6 $11 Qg5 38. Bh2 (38. Rxd8 Rxd8 39. Bxf4 Qxf4 $11)) 37... Nfg6 $1 $17 {[%emt 0:01:01][%csl LRd2,LRe7] White is on the road to losing.} 38. Bxe5+ $2 {[%emt 0:00:00]} (38. Rxd6 $17 Qe3+ 39. Bf2 Qxf2+ 40. Kxf2 Nxe7 41. Rxd8 Rxd8 42. Ra1) 38... Nxe5 $19 {[%emt 0:00:40] The board is on fire.} 39. Qxe5+ {[%emt 0:00:27]} dxe5 {[%emt 0:00:04]} 40. Rxh6 {[%emt 0:00:04]} Kxh6 {[%emt 0:00:04]} 41. Kf2 {[%emt 0:13:27] [#]} Ra8 $1 {[%emt 0:00:40]} 42. Be2 {[%emt 0:00:51]} Ra2 {[%emt 0:01:51]} 43. Rh1+ {[%emt 0:01:00]} Kg7 {[%emt 0:00:15]} 44. Nf1 {[%emt 0:00:12]} Bd7 {[%emt 0:04:57] ...Rc2 is the strong threat.} 45. Ng3 {[%emt 0:03:24]} Rc2 {[%emt 0:01:34] Strongly threatening ...Ra8.} 46. Ra1 {[%emt 0:01:47]} (46. f4 {was the only chance.}) 46... Rxc3 {[%emt 0:01:39]} 47. Nh5+ {[%emt 0:00:05]} Kg6 {[%emt 0:05:38]} 48. f4 {[%emt 0:02:35]} exf4 {[%emt 0:01:49]} 49. Ra6+ {[%emt 0:03:44]} Kg5 {[%emt 0:00:06] White must now prevent ...Rc2.} 50. Nf6 {[%emt 0:08:54] [#] Nh7+ would kill now.} Be6 $1 {[%emt 0:03:51][%mdl 512]} 51. Nh5 {[%emt 0:00:00]} (51. Nh7+ Kg6) 51... Bc8 {[%emt 0:03:01]} 52. Rb6 {[%emt 0:01:00]} Rc2 {[%emt 0:01:18] aiming for ...Bg4.} 53. Nf6 {[%emt 0:00:00] [#] Prevents Bg4.} Be6 $1 {[%emt 0:01:48][%mdl 512]} 54. e5 {[%emt 0:00:00]} (54. Nh7+ Kg6) 54... Bxd5 {[%emt 0:00:22]} 55. Rxb5 {[%emt 0:00:20] [#]} Bxg2 $1 {[%emt 0:01:28] ( -> ...f3)} 56. Nd7 {[%emt 0:01:08]} (56. Rc5 f3) 56... Bc6 {[%emt 0:01:01] Black mates.} 57. Rc5 {[%emt 0:00:30]} Bxd7 {[%emt 0:01:06]} 58. e6+ {[%emt 0:00:05]} Kf6 {[%emt 0:01:03]} 59. exd7 {[%emt 0:00:04]} Rxd7 {[%emt 0:00:14]} 60. Rxc4 {[%emt 0:00:05]} Rdd2 {[%emt 0:02:35]} 61. Rxc2 {[%emt 0:01:00]} Rxc2 {[%emt 0:00:03]} 62. Kf3 {[%emt 0:00:07] [#]} Rxe2 $1 {[%emt 0:00:06] Weighted Error Value: White=0.90/Black=0.28 (precise)} 0-1